fUST/lending_fUST_20240521
["ID","MTS","AMOUNT","RATE_DAILY","PERIOD"]
[327625826,1716256279361,-500.0,0.00046027,48]
[327625827,1716256279370,-702.98,0.00046027,48]
[327625828,1716256279380,-746.5,0.00046027,48]
[327625829,1716256279389,-500.0,0.00046027,48]
[327625830,1716256279398,-4569.8,0.00046027,48]
[327625831,1716256279407,-558.71,0.00046027,48]
[327625832,1716256279416,-500.0,0.00046027,48]
[327625833,1716256279426,-655.44,0.00046027,48]
[327625834,1716256279436,-979.85,0.00046027,48]
[327625835,1716256279445,-616.35,0.00046027,48]
[327625836,1716256279454,-500.0,0.00046027,48]
[327625837,1716256279463,-500.0,0.00046027,48]
[327625838,1716256279472,-860.47,0.00046027,48]
[327625839,1716256279482,-701.3,0.00046027,48]
[327625840,1716256279491,-500.0,0.00046027,48]
[327625841,1716256279500,-621.4,0.00046027,48]
[327625842,1716256279511,-519.75794095,0.00046027,48]
[327625843,1716256279520,-5043.45,0.00046027,48]
[327625844,1716256279535,-500.0,0.00046027,48]
[327625845,1716256279544,-500.0,0.00046027,48]
[327625846,1716256279554,-501.28408152,0.00046027,48]
[327625847,1716256279565,-680.66,0.00046027,48]
[327625848,1716256279574,-905.75,0.00046027,48]
[327625849,1716256279583,-668.38,0.00046027,48]
[327625850,1716256279592,-500.0,0.00046027,48]
[327625851,1716256279602,-4536.56,0.00046027,48]
[327625852,1716256279614,-960.25,0.00046027,48]
[327625853,1716256279623,-634.52,0.00046027,48]
[327625854,1716256279632,-530.04,0.00046027,48]
[327625855,1716256279642,-500.0,0.00046027,48]
[327625856,1716256279651,-500.0,0.00046027,48]
[327625857,1716256279660,-1213.79,0.00046027,48]
[327625858,1716256279669,-815.37,0.00046027,48]
[327625859,1716256279679,-697.34,0.00046027,48]
[327625860,1716256279688,-500.0,0.00046027,48]
[327625861,1716256279697,-500.0,0.00046027,20]
[327625862,1716256279707,-543.69,0.00046027,48]
[327625863,1716256279716,-704.21,0.00046027,48]
[327625864,1716256279725,-1357.0,0.00046027,48]
[327625865,1716256279735,-590.21,0.00046027,48]
[327625866,1716256279743,-4443.84,0.00046027,21]
[327625867,1716256279754,-500.0,0.00046027,48]
[327625868,1716256279763,-568.3,0.00046027,48]
[327625869,1716256279772,-500.0,0.00046027,48]
[327625870,1716256279782,-854.22,0.00046027,48]
[327625871,1716256279791,-603.81,0.00046027,48]
[327625872,1716256279800,-1298.13,0.00046027,48]
[327625873,1716256279809,-686.9,0.00046027,48]
[327625874,1716256279818,-1283.07,0.00046027,48]
[327625875,1716256279827,-500.0,0.00046027,48]
[327625876,1716256279836,-1928.09,0.00046027,48]
[327625877,1716256279845,-1521.93,0.00046027,48]
[327625878,1716256279855,-500.0,0.00046027,48]
[327625879,1716256279864,-500.0,0.00046027,48]
[327625880,1716256279874,-3265.34,0.00046027,48]
[327625881,1716256279883,-962.63,0.00046027,48]
[327625882,1716256279892,-500.0,0.00046027,48]
[327625883,1716256279901,-500.0,0.00046027,48]
[327625884,1716256279911,-19738.08,0.00046027,48]
[327625885,1716256279920,-500.0,0.00046027,48]
[327625886,1716256279929,-500.0,0.00046027,30]
[327625887,1716256279938,-711.64,0.00046027,48]
[327625888,1716256279947,-2017.3,0.00046027,48]
[327625889,1716256279956,-1090.23,0.00046027,48]
[327625890,1716256279966,-500.0,0.00046027,48]
[327625891,1716256279975,-1090.8,0.00046027,48]
[327625892,1716256279984,-500.0,0.00046027,48]
[327625893,1716256279993,-774.07,0.00046027,48]
[327625894,1716256280003,-500.0,0.00046027,48]
[327625895,1716256280013,-500.0,0.00046027,48]
[327625896,1716256280022,-2075.97,0.00046027,48]
[327625897,1716256280032,-453.14012886,0.00046027,48]
[327625898,1716256280042,-695.68,0.00046027,48]
[327625899,1716256280051,-500.0,0.00046027,48]
[327625900,1716256280060,-846.21,0.00046027,48]
[327625901,1716256280069,-500.0,0.00046027,48]
[327625902,1716256280078,-500.0,0.00046027,48]
[327625903,1716256280087,-204.4439738,0.0004611,2]
[327625904,1716256280096,-204.4439736,0.0004611,2]
[327625905,1716256280105,-204.4439737,0.0004611,2]
[327625906,1716256280114,-251.6374913,0.0004611,2]
[327625907,1716256280123,-204.4439736,0.0004611,2]
[327625908,1716256280132,-204.4439738,0.0004611,2]
[327625909,1716256280141,-204.4439736,0.0004611,2]
[327625910,1716256280150,-204.4439738,0.0004611,2]
[327625911,1716256280159,-204.4439736,0.0004611,2]
[327625912,1716256280168,-204.4439738,0.0004611,2]
[327625913,1716256280177,-204.4439736,0.0004611,2]
[327625914,1716256280186,-204.4439738,0.0004611,2]
[327625915,1716256280195,-204.4439736,0.0004611,2]
[327625916,1716256280205,-204.4439738,0.0004611,2]
[327625917,1716256280214,-204.4439736,0.0004611,2]
[327625918,1716256280223,-204.4439738,0.0004611,2]
[327625919,1716256280232,-204.4439736,0.0004611,2]
[327625920,1716256280241,-204.4439738,0.0004611,2]
[327625921,1716256280253,-204.4439736,0.0004611,2]
[327625922,1716256280262,-204.4439738,0.0004611,2]
[327625923,1716256280271,-204.4439736,0.0004611,2]
[327625924,1716256280280,-500.0,0.00046301,49]
[327625925,1716256280289,-500.0,0.00046301,7]
[327625926,1716256280298,-767.25,0.00046301,49]
[327625927,1716256280307,-500.0,0.00046301,49]
[327625928,1716256280316,-837.43,0.00046301,49]
[327625929,1716256280326,-650.81,0.00046301,49]
[327625930,1716256280336,-500.0,0.00046301,49]
[327625931,1716256280345,-597.94,0.00046301,49]
[327625932,1716256280354,-500.0,0.00046301,49]
[327625933,1716256280364,-500.0,0.00046301,49]
[327625934,1716256280373,-500.0,0.00046301,49]
[327625935,1716256280382,-500.0,0.00046301,49]
[327625936,1716256280391,-500.0,0.00046301,49]
[327625937,1716256280400,-559.54,0.00046301,49]
[327625938,1716256280409,-622.99,0.00046301,49]
[327625939,1716256280419,-500.0,0.00046301,49]
[327625940,1716256280428,-500.0,0.00046301,49]
[327625941,1716256280436,-500.0,0.00046301,49]
[327625942,1716256280446,-500.0,0.00046301,49]
[327625943,1716256280455,-500.0,0.00046301,49]
[327625944,1716256280463,-500.0,0.00046301,49]
[327625945,1716256280472,-500.0,0.00046301,49]
[327625946,1716256280481,-500.0,0.00046301,49]
[327625947,1716256280490,-789.44,0.00046301,49]
[327625948,1716256280499,-540.7,0.00046301,49]
[327625949,1716256280510,-596.6,0.00046301,49]
[327625950,1716256280524,-500.0,0.00046301,49]
[327625951,1716256280533,-702.31,0.00046301,49]
[327625952,1716256280542,-985.17,0.00046301,49]
[327625953,1716256280551,-1198.71,0.00046301,49]
[327625954,1716256280561,-500.0,0.00046301,2]
[327625955,1716256280570,-500.0,0.00046301,49]
[327625956,1716256280579,-889.02,0.00046301,49]
[327625957,1716256280590,-698.24,0.00046301,49]
[327625958,1716256280600,-500.0,0.00046301,49]
[327625959,1716256280609,-676.37,0.00046301,49]
[327625960,1716256280618,-500.0,0.00046301,49]
[327625961,1716256280627,-724.9,0.00046301,49]
[327625962,1716256280637,-803.48,0.00046301,49]
[327625963,1716256280646,-500.0,0.00046301,49]
[327625964,1716256280655,-500.0,0.00046301,49]
[327625965,1716256280664,-820.9,0.00046301,49]
[327625966,1716256280673,-655.92,0.00046301,49]
[327625967,1716256280682,-500.0,0.00046301,49]
[327625968,1716256280691,-500.0,0.00046301,49]
[327625969,1716256280700,-500.0,0.00046301,49]
[327625970,1716256280709,-500.0,0.00046301,49]
[327625971,1716256280718,-671.89,0.00046301,49]
[327625972,1716256280727,-520.46,0.00046301,49]
[327625973,1716256280736,-183.00381547,0.00046301,49]
[327625974,1716256280745,-723.43,0.00046301,49]
[327625975,1716256280755,-500.0,0.00046301,49]
[327625976,1716256280765,-949.87,0.00046301,49]
[327625977,1716256280773,-500.0,0.00046301,49]
[327625978,1716256280783,-684.86,0.00046301,49]
[327625979,1716256280792,-778.84,0.00046301,49]
[327625980,1716256280801,-797.35,0.00046301,49]
[327625981,1716256280810,-723.49,0.00046301,49]
[327625982,1716256280819,-861.17,0.00046301,49]
[327625983,1716256280827,-994.81,0.00046301,49]
[327625984,1716256280837,-736.19,0.00046301,49]
[327625985,1716256280847,-585.89,0.00046301,49]
[327625986,1716256280856,-798.18,0.00046301,49]
[327625987,1716256280865,-706.53,0.00046301,49]
[327625988,1716256280874,-500.0,0.00046301,49]
[327625989,1716256280883,-500.0,0.00046301,49]
[327625990,1716256280892,-500.0,0.00046301,49]
[327625991,1716256280901,-491.47312842,0.00046301,49]
[327625992,1716256280910,-526.95,0.00046301,49]
[327625993,1716256280919,-761.38,0.00046301,49]
[327625994,1716256280928,-699.03,0.00046301,49]
[327625995,1716256280937,-500.0,0.00046301,49]
[327625996,1716256280946,-668.01,0.00046301,49]
[327625997,1716256280955,-983.04,0.00046301,49]
[327625998,1716256280964,-500.0,0.00046301,49]
[327625999,1716256280973,-640.06,0.00046301,49]
[327626000,1716256280982,-557.05,0.00046301,49]
[327626001,1716256280990,-1324.9,0.00046301,49]
[327626002,1716256280999,-634.01,0.00046301,49]
[327626003,1716256281011,-512.82,0.00046301,49]
[327626004,1716256281019,-655.25,0.00046301,49]
[327626005,1716256281028,-500.0,0.00046301,49]
[327626006,1716256281037,-500.0,0.00046301,49]
[327626007,1716256281047,-820.76,0.00046301,49]
[327626008,1716256281056,-500.0,0.00046301,49]
[327626009,1716256281064,-500.0,0.00046301,49]
[327626010,1716256281073,-500.0,0.00046301,49]
[327626011,1716256281082,-500.0,0.00046301,49]
[327626012,1716256281091,-1050.19,0.00046301,49]
[327626013,1716256281100,-500.0,0.00046301,49]
[327626014,1716256281196,-500.0,0.00046301,49]
[327626015,1716256281220,-500.0,0.00046301,49]
[327626016,1716256281229,-500.0,0.00046301,49]
[327626017,1716256281238,-578.19,0.00046301,49]
[327626018,1716256281247,-500.0,0.00046301,14]
[327626019,1716256281262,-500.0,0.00046301,2]
[327626020,1716256281270,-868.84,0.00046301,49]
[327626021,1716256281279,-560.94,0.00046301,49]
[327626022,1716256281289,-500.0,0.00046301,49]
[327626023,1716256281298,-500.0,0.00046301,49]
[327626024,1716256281307,-3015.8,0.00046301,49]
[327626025,1716256281316,-500.0,0.00046301,120]
[327626026,1716256281324,-742.5,0.00046301,49]
[327626027,1716256281333,-1312.06,0.00046301,49]
[327626028,1716256281342,-672.9,0.00046301,49]
[327626029,1716256281352,-500.0,0.00046301,49]
[327626030,1716256281362,-1721.54,0.00046301,49]
[327626031,1716256281371,-537.17,0.00046301,49]
[327626032,1716256281380,-1288.56,0.00046301,49]
[327626033,1716256281390,-500.0,0.00046301,49]
[327626034,1716256281399,-2966.04,0.00046301,49]
[327626035,1716256281408,-800.58,0.00046301,49]
[327626036,1716256281418,-519.32,0.00046301,49]
[327626037,1716256281427,-1101.76,0.00046301,49]
[327626038,1716256281436,-571.16,0.00046301,49]
[327626039,1716256281446,-3000.0,0.00046301,30]
[327626040,1716256281455,-500.0,0.00046301,49]
[327626041,1716256281465,-679.77,0.00046301,49]
[327626042,1716256281474,-3098.74,0.00046301,49]
[327626043,1716256281483,-573.79,0.00046301,49]
[327626044,1716256281492,-740.22,0.00046301,49]
[327626045,1716256281502,-500.0,0.00046301,49]
[327626046,1716256281512,-946.03,0.00046301,49]
[327626047,1716256281525,-520.3,0.00046301,49]
[327626048,1716256281534,-500.0,0.00046301,49]
[327626049,1716256281543,-683.12,0.00046301,49]
[327626050,1716256281553,-1857.09,0.00046301,49]
[327626051,1716256281562,-815.0,0.00046301,49]
[327626052,1716256281571,-500.0,0.00046301,49]
[327626053,1716256281581,-504.58,0.00046301,49]
[327626054,1716256281591,-725.35,0.00046301,49]
[327626055,1716256281600,-1095.12,0.00046301,49]
[327626056,1716256281611,-758.0,0.00046301,49]
[327626057,1716256281621,-10687.91,0.00046301,49]
[327626058,1716256281630,-3071.22,0.00046301,7]
[327626059,1716256281639,-1953.62,0.00046301,49]
[327626060,1716256281648,-621.32,0.00046301,49]
[327626061,1716256281658,-871.95,0.00046301,7]
[327626062,1716256281667,-711.26,0.00046301,49]
[327626063,1716256281676,-500.0,0.00046301,49]
[327626064,1716256281685,-500.0,0.00046301,49]
[327626065,1716256281695,-779.29,0.00046301,49]
[327626066,1716256281704,-500.0,0.00046301,49]
[327626067,1716256281713,-500.0,0.00046301,49]
[327626068,1716256281722,-702.98,0.00046301,49]
[327626069,1716256281731,-746.5,0.00046301,49]
[327626070,1716256281740,-500.0,0.00046301,49]
[327626071,1716256281751,-4569.8,0.00046301,49]
[327626072,1716256281760,-558.71,0.00046301,49]
[327626073,1716256281769,-500.0,0.00046301,49]
[327626074,1716256281778,-655.44,0.00046301,49]
[327626075,1716256281787,-979.85,0.00046301,49]
[327626076,1716256281796,-616.35,0.00046301,49]
[327626077,1716256281805,-500.0,0.00046301,49]
[327626078,1716256281814,-500.0,0.00046301,49]
[327626079,1716256281823,-860.47,0.00046301,49]
[327626080,1716256281833,-701.3,0.00046301,49]
[327626081,1716256281842,-500.0,0.00046301,49]
[327626082,1716256281851,-621.4,0.00046301,49]
[327626083,1716256281861,-5043.45,0.00046301,49]
[327626084,1716256281870,-500.0,0.00046301,49]
[327626085,1716256281879,-500.0,0.00046301,49]
[327626086,1716256281889,-680.66,0.00046301,49]
[327626087,1716256281898,-905.75,0.00046301,49]
[327626088,1716256281907,-668.38,0.00046301,49]
[327626089,1716256281916,-500.0,0.00046301,49]
[327626090,1716256281925,-4536.56,0.00046301,49]
[327626091,1716256281934,-960.25,0.00046301,49]
[327626092,1716256281944,-634.52,0.00046301,49]
[327626093,1716256281954,-530.04,0.00046301,49]
[327626094,1716256281963,-500.0,0.00046301,49]
[327626095,1716256281973,-500.0,0.00046301,49]
[327626096,1716256281982,-1213.79,0.00046301,49]
[327626097,1716256281992,-815.37,0.00046301,49]
[327626098,1716256282003,-697.34,0.00046301,49]
[327626099,1716256282013,-500.0,0.00046301,49]
[327626100,1716256282022,-500.0,0.00046301,20]
[327626101,1716256282031,-543.69,0.00046301,49]
[327626102,1716256282040,-704.21,0.00046301,49]
[327626103,1716256282049,-1357.0,0.00046301,49]
[327626104,1716256282058,-590.21,0.00046301,49]
[327626105,1716256282067,-4443.84,0.00046301,21]
[327626106,1716256282077,-500.0,0.00046301,49]
[327626107,1716256282086,-568.3,0.00046301,49]
[327626108,1716256282095,-500.0,0.00046301,49]
[327626109,1716256282104,-854.22,0.00046301,49]
[327626110,1716256282113,-603.81,0.00046301,49]
[327626111,1716256282122,-1298.13,0.00046301,49]
[327626112,1716256282131,-686.9,0.00046301,49]
[327626113,1716256282140,-1283.07,0.00046301,49]
[327626114,1716256282149,-500.0,0.00046301,49]
[327626115,1716256282158,-1928.09,0.00046301,49]
[327626116,1716256282167,-1521.93,0.00046301,49]
[327626117,1716256282176,-500.0,0.00046301,49]
[327626118,1716256282185,-500.0,0.00046301,49]
[327626119,1716256282194,-3265.34,0.00046301,49]
[327626120,1716256282203,-962.63,0.00046301,49]
[327626121,1716256282212,-243.68760383,0.00046301,49]
[327626122,1716256282222,-500.0,0.00046301,49]
[327626123,1716256282231,-19738.08,0.00046301,49]
[327626124,1716256282240,-500.0,0.00046301,49]
[327626125,1716256282249,-500.0,0.00046301,30]
[327626126,1716256282260,-711.64,0.00046301,49]
[327626127,1716256282269,-2017.3,0.00046301,49]
[327626128,1716256282278,-1090.23,0.00046301,49]
[327626129,1716256282287,-500.0,0.00046301,49]
[327626130,1716256282296,-500.0,0.00046301,49]
[327626131,1716256282305,-774.07,0.00046301,49]
[327626132,1716256282314,-1090.8,0.00046301,49]
[327626133,1716256282323,-500.0,0.00046301,49]
[327626134,1716256282333,-500.0,0.00046301,49]
[327626135,1716256282342,-2075.97,0.00046301,49]
[327626136,1716256282351,-695.68,0.00046301,49]
[327626137,1716256282360,-500.0,0.00046301,49]
[327626138,1716256282369,-846.21,0.00046301,49]
[327626139,1716256282379,-500.0,0.00046301,49]
[327626140,1716256282389,-500.0,0.00046301,49]
[327626141,1716256282398,-160.0,0.00046341,6]
[327626142,1716256282408,-153.0,0.00046438,2]
[327626143,1716256282417,-153.0,0.00046438,2]
[327626144,1716256282426,-153.0,0.00046438,2]
[327626145,1716256282435,-153.0,0.00046438,2]
[327626146,1716256282445,-281.0,0.000465,23]
[327626147,1716256282455,-2000.0,0.000465,23]
[327626148,1716256282464,-2000.0,0.000465,23]
[327626149,1716256282473,-500.0,0.00046575,50]
[327626150,1716256282482,-500.0,0.00046575,7]
[327626151,1716256282491,-767.25,0.00046575,50]
[327626152,1716256282502,-500.0,0.00046575,50]
[327626153,1716256282512,-837.43,0.00046575,50]
[327626154,1716256282526,-650.81,0.00046575,50]
[327626155,1716256282535,-500.0,0.00046575,50]
[327626156,1716256282544,-597.94,0.00046575,50]
[327626157,1716256282554,-500.0,0.00046575,50]
[327626158,1716256282565,-500.0,0.00046575,50]
[327626159,1716256282574,-500.0,0.00046575,50]
[327626160,1716256282583,-500.0,0.00046575,50]
[327626161,1716256282593,-500.0,0.00046575,50]
[327626162,1716256282603,-559.54,0.00046575,50]
[327626163,1716256282614,-622.99,0.00046575,50]
[327626164,1716256282623,-500.0,0.00046575,50]
[327626165,1716256282632,-500.0,0.00046575,50]
[327626166,1716256282641,-500.0,0.00046575,50]
[327626167,1716256282650,-500.0,0.00046575,50]
[327626168,1716256282659,-500.0,0.00046575,50]
[327626169,1716256282669,-539.95244889,0.00046575,50]
[327626170,1716256282678,-500.0,0.00046575,50]
[327626171,1716256282687,-500.0,0.00046575,50]
[327626172,1716256282697,-789.44,0.00046575,50]
[327626173,1716256282706,-540.7,0.00046575,50]
[327626174,1716256282716,-596.6,0.00046575,50]
[327626175,1716256282727,-500.0,0.00046575,50]
[327626176,1716256282738,-702.31,0.00046575,50]
[327626177,1716256282748,-985.17,0.00046575,50]
[327626178,1716256282760,-1198.71,0.00046575,50]
[327626179,1716256282770,-474.86312746,0.00046575,2]
[327626180,1716256282779,-500.0,0.00046575,50]
[327626181,1716256282788,-889.02,0.00046575,50]
[327626182,1716256282797,-698.24,0.00046575,50]
[327626183,1716256282806,-500.0,0.00046575,50]
[327626184,1716256282815,-676.37,0.00046575,50]
[327626185,1716256282824,-500.0,0.00046575,50]
[327626186,1716256282833,-724.9,0.00046575,50]
[327626187,1716256282842,-803.48,0.00046575,50]
[327626188,1716256282851,-500.0,0.00046575,50]
[327626189,1716256282860,-500.0,0.00046575,50]
[327626190,1716256282869,-820.9,0.00046575,50]
[327626191,1716256282879,-655.92,0.00046575,50]
[327626192,1716256282888,-500.0,0.00046575,50]
[327626193,1716256282897,-500.0,0.00046575,50]
[327626194,1716256282907,-500.0,0.00046575,50]
[327626195,1716256282916,-500.0,0.00046575,50]
[327626196,1716256282925,-671.89,0.00046575,50]
[327626197,1716256282934,-520.46,0.00046575,50]
[327626198,1716256282942,-723.43,0.00046575,50]
[327626199,1716256282951,-500.0,0.00046575,50]
[327626200,1716256282960,-949.87,0.00046575,50]
[327626201,1716256282969,-500.0,0.00046575,50]
[327626202,1716256282978,-684.86,0.00046575,50]
[327626203,1716256282987,-778.84,0.00046575,50]
[327626204,1716256282996,-797.35,0.00046575,50]
[327626205,1716256283006,-723.49,0.00046575,50]
[327626206,1716256283016,-861.17,0.00046575,50]
[327626207,1716256283025,-994.81,0.00046575,50]
[327626208,1716256283034,-736.19,0.00046575,50]
[327626209,1716256283043,-585.89,0.00046575,50]
[327626210,1716256283052,-798.18,0.00046575,50]
[327626211,1716256283061,-706.53,0.00046575,50]
[327626212,1716256283070,-500.0,0.00046575,50]
[327626213,1716256283080,-500.0,0.00046575,50]
[327626214,1716256283088,-500.0,0.00046575,50]
[327626215,1716256283098,-526.95,0.00046575,50]
[327626216,1716256283107,-761.38,0.00046575,50]
[327626217,1716256283116,-699.03,0.00046575,50]
[327626218,1716256283124,-500.0,0.00046575,50]
[327626219,1716256283133,-668.01,0.00046575,50]
[327626220,1716256283143,-983.04,0.00046575,50]
[327626221,1716256283152,-500.0,0.00046575,50]
[327626222,1716256283161,-640.06,0.00046575,50]
[327626223,1716256283171,-557.05,0.00046575,50]
[327626224,1716256283180,-1324.9,0.00046575,50]
[327626225,1716256283189,-634.01,0.00046575,50]
[327626226,1716256283198,-512.82,0.00046575,50]
[327626227,1716256283207,-655.25,0.00046575,50]
[327626228,1716256283217,-500.0,0.00046575,50]
[327626229,1716256283226,-500.0,0.00046575,50]
[327626230,1716256283235,-820.76,0.00046575,50]
[327626231,1716256283246,-500.0,0.00046575,50]
[327626232,1716256283256,-500.0,0.00046575,50]
[327626233,1716256283265,-500.0,0.00046575,50]
[327626234,1716256283275,-500.45396795,0.00046575,40]
[327626235,1716256283284,-204.7007881,0.00046575,50]
[327626236,1716256283293,-1050.19,0.00046575,50]
[327626237,1716256283302,-500.0,0.00046575,50]
[327626238,1716256283311,-500.0,0.00046575,50]
[327626239,1716256283320,-500.0,0.00046575,50]
[327626240,1716256283329,-500.0,0.00046575,50]
[327626241,1716256283338,-578.19,0.00046575,50]
[327626242,1716256283347,-500.0,0.00046575,14]
[327626243,1716256283356,-500.0,0.00046575,2]
[327626244,1716256283365,-868.84,0.00046575,50]
[327626245,1716256283375,-560.94,0.00046575,50]
[327626246,1716256283384,-500.0,0.00046575,50]
[327626247,1716256283491,-500.0,0.00046575,50]
[327626248,1716256283500,-3015.8,0.00046575,50]
[327626249,1716256283510,-500.0,0.00046575,120]
[327626250,1716256283520,-742.5,0.00046575,50]
[327626251,1716256283534,-1312.06,0.00046575,50]
[327626252,1716256283544,-672.9,0.00046575,50]
[327626253,1716256283553,-500.0,0.00046575,50]
[327626254,1716256283564,-1721.54,0.00046575,50]
[327626255,1716256283573,-537.17,0.00046575,50]
[327626256,1716256283583,-1288.56,0.00046575,50]
[327626257,1716256283592,-404.44229003,0.00046575,50]
[327626258,1716256283601,-2966.04,0.00046575,50]
[327626259,1716256283612,-800.58,0.00046575,50]
[327626260,1716256283623,-519.32,0.00046575,50]
[327626261,1716256283632,-1101.76,0.00046575,50]
[327626262,1716256283642,-571.16,0.00046575,50]
[327626263,1716256283651,-3000.0,0.00046575,30]
[327626264,1716256283660,-500.0,0.00046575,50]
[327626265,1716256283669,-679.77,0.00046575,50]
[327626266,1716256283679,-3098.74,0.00046575,50]
[327626267,1716256283688,-573.79,0.00046575,50]
[327626268,1716256283698,-740.22,0.00046575,50]
[327626269,1716256283707,-500.0,0.00046575,50]
[327626270,1716256283716,-946.03,0.00046575,50]
[327626271,1716256283726,-520.3,0.00046575,50]
[327626272,1716256283736,-500.0,0.00046575,50]
[327626273,1716256283745,-683.12,0.00046575,50]
[327626274,1716256283756,-1857.09,0.00046575,50]
[327626275,1716256283766,-815.0,0.00046575,50]
[327626276,1716256283776,-500.0,0.00046575,50]
[327626277,1716256283786,-504.58,0.00046575,50]
[327626278,1716256283795,-725.35,0.00046575,50]
[327626279,1716256283804,-1095.12,0.00046575,50]
[327626280,1716256283814,-758.0,0.00046575,50]
[327626281,1716256283823,-10687.91,0.00046575,50]
[327626282,1716256283833,-3071.22,0.00046575,7]
[327626283,1716256283843,-1953.62,0.00046575,50]
[327626284,1716256283852,-621.32,0.00046575,50]
[327626285,1716256283862,-871.95,0.00046575,7]
[327626286,1716256283871,-711.26,0.00046575,50]
[327626287,1716256283880,-500.0,0.00046575,50]
[327626288,1716256283889,-500.0,0.00046575,50]
[327626289,1716256283899,-779.29,0.00046575,50]
[327626290,1716256283908,-500.0,0.00046575,50]
[327626291,1716256283917,-500.0,0.00046575,50]
[327626292,1716256283927,-702.98,0.00046575,50]
[327626293,1716256283936,-746.5,0.00046575,50]
[327626294,1716256283945,-500.0,0.00046575,50]
[327626295,1716256283954,-4569.8,0.00046575,50]
[327626296,1716256283963,-558.71,0.00046575,50]
[327626297,1716256283973,-500.0,0.00046575,50]
[327626298,1716256283981,-655.44,0.00046575,50]
[327626299,1716256283991,-979.85,0.00046575,50]
[327626300,1716256284001,-616.35,0.00046575,50]
[327626301,1716256284009,-500.0,0.00046575,50]
[327626302,1716256284019,-500.0,0.00046575,50]
[327626303,1716256284028,-860.47,0.00046575,50]
[327626304,1716256284038,-701.3,0.00046575,50]
[327626305,1716256284047,-500.0,0.00046575,50]
[327626306,1716256284056,-621.4,0.00046575,50]
[327626307,1716256284065,-5043.45,0.00046575,50]
[327626308,1716256284074,-500.0,0.00046575,50]
[327626309,1716256284084,-500.0,0.00046575,50]
[327626310,1716256284093,-680.66,0.00046575,50]
[327626311,1716256284103,-905.75,0.00046575,50]
[327626312,1716256284113,-668.38,0.00046575,50]
[327626313,1716256284123,-500.0,0.00046575,50]
[327626314,1716256284132,-4536.56,0.00046575,50]
[327626315,1716256284141,-960.25,0.00046575,50]
[327626316,1716256284151,-634.52,0.00046575,50]
[327626317,1716256284162,-530.04,0.00046575,50]
[327626318,1716256284171,-500.0,0.00046575,50]
[327626319,1716256284180,-500.0,0.00046575,50]
[327626320,1716256284189,-1213.79,0.00046575,50]
[327626321,1716256284199,-815.37,0.00046575,50]
[327626322,1716256284209,-697.34,0.00046575,50]
[327626323,1716256284219,-500.0,0.00046575,50]
[327626324,1716256284228,-500.0,0.00046575,20]
[327626325,1716256284237,-543.69,0.00046575,50]